Cogmind - Beta 16 @@@ ROGUE MODE // 2025.11.07 @ 13:16:03 Player: ChromeKnight Result: Destroyed by P-80 Master with Gamma Rifle Performance ------------- Evolutions (7) 3500 Regions Visited (22) 4400 Robots Destroyed (72) 360 Value Destroyed (2148) 2148 Prototype IDs (44) 880 Alien Tech Used (2) 400 Bonus (3020) 3020 TOTAL SCORE: 14708 Bonus ------- High Alert Combat Kills 70 Follower Combat Kills 383 Network Hubs Disabled 200 Registered with UFD 300 Met Optimus in HQ 500 Met Data Miner 300 Met Zhirov 300 Hacked Protovariant 500 Scanned by Researcher 500 Friendly Fire -33 Cogmind --------- Core Integrity 0/1300 Matter 45/300 Energy 74/100 System Corruption 18% Temperature Cool (0) Movement Core (200) Ox3 Location -3/Testing Parts ------- > --- POWER (2) -------- (None) > --- PROPULSION (5) --- (None) > --- UTILITY (12) ----- Experimental Power Amplifier Enhanced Optical Array 0b10 Decoder Chip [Looter] Improved Target Analyzer > --- WEAPON (2) ------- Containment Facilitator > --- INVENTORY (5) ---- Xenon Bombardment Thruster Xenon Bombardment Thruster Improved Diametric Drive Experimental Weapon Shielding Peak State ------------ > --- POWER ------------ Fusion Reactor > --- PROPULSION ------- Cooled Nuclear Pulse Thruster Cooled Nuclear Pulse Thruster Impulse Thruster Field Propulsion Array > --- UTILITY ---------- Enhanced Optical Array Improved Sensor Array Improved Signal Interpreter Experimental Terrain Scanner Advanced Terrain Scan Processor 0b10 Decoder Chip [Looter] Core Analyzer Light Regenerative Plating Improved Hacking Suite System Shield > --- WEAPON ----------- Force Lance Force Lance > --- INVENTORY -------- Cooled Nuclear Pulse Thruster Medium Storage Unit Experimental Weapon Shielding Dimensional Node Initializer Transdimensional Reconstructor [Rating: 107] Favorites ----------- Power Ion Engine Engine Ion Engine Power Core Micro Nuclear Core Reactor Fusion Reactor Propulsion Biomechanical Wings Treads Light Treads Leg Improved Thunder Leg Flight Unit Biomechanical Wings Utility High-capacity Storage Unit Device Improved Sensor Array Storage High-capacity Storage Unit Processor Advanced Terrain Scan Processor Hackware Improved Hacking Suite Protection Light Regenerative Plating Weapon Molecular Deconstructor Energy Gun EM Pulse Gun Ballistic Gun Light Assault Rifle Ballistic Cannon Hypervelocity Gauss Cannon Launcher Grenade Launcher Special Weapon Molecular Deconstructor Slashing Weapon Scythe Piercing Weapon Force Lance Build | -11 -10 -10 -10 -8 -8 -6 -6 -6 -6 -5 -5 -5 -5 -5 -4 -4 -4 -4 -4 -4 -3 -3 ------- Run | Yrd Mat Min Sub Rec Scr Fac Low Low Dat Pro Fac Upp Upp Zhi Pro Fac Ext Cet Arc Hub Res Tes Slots Evolved 14 | . . . . . . 8 . . . . 2 . . . . 2 . . . . 2 . Power 1 | . . . . . . 1 . . . . . . . . . . . . . . . . Propulsion 3 | . . . . . . 3 . . . . . . . . . . . . . . . . Utility 10 | . . . . . . 4 . . . . 2 . . . . 2 . . . . 2 . Weapon . | . . . . . . . . . . . . . . . . . . . . . . . Parts Attached 91 | 6 3 3 1 . 10 9 3 2 1 2 5 . . 7 1 4 7 . 2 1 11 13 Power 11 | 1 1 . . . 1 1 . 1 . . 1 . . 1 . 1 . . 1 . 1 1 Engine 5 | 1 1 . . . . 1 . . . . . . . . . 1 . . 1 . . . Core 3 | . . . . . 1 . . 1 . . 1 . . . . . . . . . . . Reactor 3 | . . . . . . . . . . . . . . 1 . . . . . . 1 1 Propulsion 30 | 2 . 1 . . 5 2 . . . 2 . . . 3 . . 3 . . . 7 5 Treads 6 | 2 . 1 . . 3 . . . . . . . . . . . . . . . . . Leg 4 | . . . . . . . . . . . . . . . . . . . . . 1 3 Wheel . | . . . . . . . . . . . . . . . . . . . . . . . Hover . | . . . . . . . . . . . . . . . . . . . . . . . Flight 20 | . . . . . 2 2 . . . 2 . . . 3 . . 3 . . . 6 2 Utility 31 | 1 1 . . . 2 6 2 . . . 3 . . 3 1 2 2 . 1 1 3 3 Device 8 | . . . . . . 2 2 . . . . . . . . . 1 . . . 2 1 Storage 6 | 1 1 . . . . . . . . . 2 . . 1 . . 1 . . . . . Processor 9 | . . . . . 1 3 . . . . . . . . 1 2 . . . 1 . 1 Hackware 5 | . . . . . 1 1 . . . . . . . . . . . . 1 . 1 1 Protection 3 | . . . . . . . . . . . 1 . . 2 . . . . . . . . Artifact . | . . . . . . . . . . . . . . . . . . . . . . . Weapon 19 | 2 1 2 1 . 2 . 1 1 1 . 1 . . . . 1 2 . . . . 4 Energy Gun 2 | 1 . . . . 1 . . . . . . . . . . . . . . . . . Energy Cannon . | . . . . . . . . . . . . . . . . . . . . . . . Ballistic Gun 4 | 1 . 1 . . . . 1 . . . 1 . . . . . . . . . . . Ballistic Cannon 1 | . . . . . . . . . . . . . . . . . 1 . . . . . Launcher 6 | . 1 1 . . . . . 1 . . . . . . . . . . . . . 3 Special Weapon 2 | . . . . . . . . . 1 . . . . . . . . . . . . 1 Impact Weapon . | . . . . . . . . . . . . . . . . . . . . . . . Slashing Weapon 2 | . . . 1 . 1 . . . . . . . . . . . . . . . . . Piercing Weapon 2 | . . . . . . . . . . . . . . . . 1 1 . . . . . Special Melee Weapon . | . . . . . . . . . . . . . . . . . . . . . . . Unidentified Prototypes 12 | . . . . . . 1 . . 1 . 1 . . 5 . . . 1 . . 1 2 Parts Lost 50 | . . 2 4 . . . . . . . . . 6 . . . 6 . 1 . 20 11 Power 8 | . . . 1 . . . . . . . . . 2 . . . . . . . 3 2 Propulsion 20 | . . 1 1 . . . . . . . . . 4 . . . 5 . . . 6 3 Utility 15 | . . . . . . . . . . . . . . . . . 1 . 1 . 10 3 Weapon 7 | . . 1 2 . . . . . . . . . . . . . . . . . 1 3 Highest Loss Streak 18 | . . 1 3 . . . . . . . . . 4 . . . 6 . 1 . 18 6 To Critical Strikes . | . . . . . . . . . . . . . . . . . . . . . . . Average Backups 7 | . 3 6 5 4 12 3 4 3 2 4 4 5 4 4 5 4 8 7 8 7 6 4 Power . | . . 1 1 1 1 . . . . . . . . . . . . . 1 1 . . Propulsion . | . . . . . 2 . . . . . . . . . . . 1 . . . . 2 Utility 2 | . . 1 1 1 5 2 3 2 2 3 3 3 2 2 3 2 2 2 3 2 2 1 Weapon 2 | . 1 3 3 2 4 1 1 . . 1 1 1 . . . . 2 3 2 2 2 . Tool/Special . | . . . . . . . . . . . . . . . . . . . . . . . Unused Backups 14 | . . . . . 3 . . . . 2 1 1 1 . . 1 . . . . 4 1 Power . | . . . . . . . . . . . . . . . . . . . . . . . Propulsion . | . . . . . . . . . . . . . . . . . . . . . . . Utility 10 | . . . . . 2 . . . . 2 1 1 1 . . 1 . . . . 2 . Weapon 3 | . . . . . 1 . . . . . . . . . . . . . . . 1 1 Tool/Special 1 | . . . . . . . . . . . . . . . . . . . . . 1 . Average Slot Usage (%) 71 | . 85 84 80 57 50 72 91 93 91 89 93 94 67 66 81 83 82 67 61 63 69 55 Engine 3 | . 14 14 12 . . 1 6 6 6 6 3 . . . . . . . 2 . . . Core 1 | . . . . . . 6 6 6 6 6 6 11 3 . . . . . . . . . Reactor 1 | . . . . . . . . . . . . . . 3 5 5 4 4 . . 2 7 Treads 12 | . 28 27 26 14 26 . . . . . . . . . . . . . . . . . Flight 10 | . . . . . 1 16 26 26 26 29 29 29 13 16 23 21 20 10 10 10 11 2 Device 4 | . . . . . . 5 11 13 13 13 11 11 11 11 11 10 6 4 2 4 5 5 Storage 8 | . 14 14 14 14 13 . . . . . 4 5 5 2 . . 3 5 5 5 3 . Processor 10 | . . . . . 6 18 14 13 13 13 11 11 11 11 16 25 26 26 26 26 22 13 Hackware 5 | . . . . . . 8 13 13 13 13 11 11 11 11 11 10 10 10 12 15 13 1 Protection 1 | . . . . . . . . . . . 5 5 5 5 5 5 4 4 . . 2 3 Energy Gun 1 | . 14 . . . . 6 . . . . . . . . . . . . . . . . Ballistic Gun 4 | . 13 18 14 14 . . 5 4 . . . . . . . . . . . . . . Launcher 2 | . . 9 10 14 . . . 1 4 . . . . . . . . . . . . 7 Special Weapon 1 | . . . . . . . . . 1 6 5 5 2 . 5 5 2 . . . . . Peak Build Rating 107 | 6 7 6 6 4 31 55 63 63 73 75 83 84 84 91 93 103 107 65 68 68 96 99 Average Rating 43 | 4 6 5 5 4 13 44 61 62 64 73 80 83 58 63 92 102 98 64 59 62 78 81 On Entrance 48 | . 6 6 6 4 4 31 52 63 61 73 74 83 84 42 88 93 103 53 49 59 64 21 Avg Prop Armor Cover (%) 15 | . . . . . 17 . . . . . . . . . . . . . . . 2 1 Naked Turns . | . . . . . . . . . . . . . . . . . . . . . . . Heaviest Build 58 | 14 49 49 49 44 44 16 23 19 19 19 22 22 22 26 24 24 43 10 25 19 34 58 Greatest Support 84 | 40 40 40 40 20 43 23 23 23 23 27 26 26 26 24 24 24 34 12 21 12 28 84 Greatest Overweight (x) 4 | . 1 2 2 2 2 . . . . . . . . 1 . . 1 . 2 1 2 4 Average Overweight (x) . | . . 1 1 2 . . . . . . . . . . . . . . . . . . Largest Inventory Capacity 20 | 8 20 20 20 20 20 5 5 5 5 5 5 5 5 5 5 5 10 10 10 10 10 5 Average Capacity 12 | 6 19 20 20 20 19 5 5 5 5 5 5 5 5 5 5 5 8 10 10 10 9 5 Most Carried 18 | 1 5 7 7 5 18 5 5 5 5 5 5 5 5 5 5 5 10 9 9 8 10 5 Average Carried 7 | . 3 6 6 5 14 4 5 4 4 4 4 4 4 4 5 4 8 7 8 7 6 4 Final Capacity 20 | 8 20 20 20 20 5 5 5 5 5 5 5 5 5 5 5 5 10 10 10 10 5 5 Final Carried 9 | 1 5 6 5 5 5 5 5 5 5 5 5 5 5 5 5 5 9 9 8 8 5 4 Class Distribution -------------------- 55% | Mutant 33% | Hacker-Scout 5% | Hacker-Mutant Dominant Class ---------------- Mutant | -10/Materials Mutant | -10/Mines Mutant | -10/Subcaves Mutant | -8/Recycling Mutant | -8/Scraptown Derelict-Sprinter | -6/Factory Hacker-Scout | -6/Lower Caves Hacker-Scout | -6/Lower Caves Hacker-Scout | -6/Data Miner Hacker-Scout | -5/Proximity Caves Hacker-Scout | -5/Factory Hacker-Scout | -5/Upper Caves Hacker-Scout | -5/Upper Caves Hacker-Scout | -5/Zhirov Hacker-Scout | -4/Proximity Caves Hacker-Scout | -4/Factory Hacker-Scout | -4/Extension Hacker-Mutant | -4/Cetus Hacker-Mutant | -4/Archives Hacker-Scout | -4/Hub_04(d) Hacker-Sprinter | -3/Research Mutant | -3/Testing Resources | -11 -10 -10 -10 -8 -8 -6 -6 -6 -6 -5 -5 -5 -5 -5 -4 -4 -4 -4 -4 -4 -3 -3 ----------- Run | Yrd Mat Min Sub Rec Scr Fac Low Low Dat Pro Fac Upp Upp Zhi Pro Fac Ext Cet Arc Hub Res Tes Matter Collected 2108 | 203 204 54 37 . 266 80 40 10 . 90 133 8 78 . 158 . 535 56 39 . 100 17 Remotely . | . . . . . . . . . . . . . . . . . . . . . . . Salvage Created 1747 | . 342 135 41 . . 127 . 42 . . 133 . 44 . . . 319 . 39 . 214 311 Parts 115 | . 28 10 4 . . 5 . 1 . . 7 . 6 . 1 . 14 . 4 . 12 23 Haulers Intercepted 4 | . 1 . . . . 1 . . . . 1 . . . . . . . . . . 1 Recyclers Shooed 4 | 1 2 . . . . . . . . . . . . . . . . . . . . 1 Parts Field Recycled . | . . . . . . . . . . . . . . . . . . . . . . . Retrieved Matter . | . . . . . . . . . . . . . . . . . . . . . . . Parts Self-Destructed 73 | . . . 17 . . . . 1 . 40 . 12 2 . 1 . . . . . . . Prevented . | . . . . . . . . . . . . . . . . . . . . . . . Parts Restored . | . . . . . . . . . . . . . . . . . . . . . . . Kills | -11 -10 -10 -10 -8 -8 -6 -6 -6 -6 -5 -5 -5 -5 -5 -4 -4 -4 -4 -4 -4 -3 -3 ------- Run | Yrd Mat Min Sub Rec Scr Fac Low Low Dat Pro Fac Upp Upp Zhi Pro Fac Ext Cet Arc Hub Res Tes Combat Hostiles Destroyed 49 | . 10 9 4 . . . . 1 . . 2 . 5 . . . 7 . . . 5 6 Melee 13 | . . . . . . . . 1 . . . . . . . . 7 . . . 5 . Guns 10 | . 7 1 2 . . . . . . . . . . . . . . . . . . . AOE 24 | . 3 8 2 . . . . . . . . . 5 . . . . . . . . 6 Classes Destroyed 14 | . 6 . 1 . . . . 1 . . . . . . 1 . 2 . . . . 3 Worker 2 | . 1 . . . . . . . . . . . . . . . . . . . . 1 Builder 8 | . . . . . . . . . . . . . . . . . 2 . . . . 6 Hauler 4 | . 1 . . . . 1 . . . . 1 . . . . . . . . . . 1 Minesweeper 1 | . . . . . . . . . . . . . . . 1 . . . . . . . Operator 3 | . 1 . . . . . . . . . . . . . . . . . 1 . . 1 Turret 2 | . . . 2 . . . . . . . . . . . . . . . . . . . Watcher 2 | . 1 . . . . 1 . . . . . . . . . . . . . . . . Swarmer 31 | . 6 7 4 . . . . . . . . . 5 . . . 5 . . . 4 . Saboteur 1 | . . . . . . . . . . . . . . . . . . . . . . 1 Grunt 11 | . 4 2 . . . . . . . . . . . . . . . . . . 1 4 Duelist 1 | . . . . . . . . . . . . . . . . . . . . . . 1 Sentry 2 | . . . . . . . . . . . . . . . . . 2 . . . . . Programmer 3 | . . . . . . . . 1 . . 2 . . . . . . . . . . . Investigator 1 | . . . . . . . . . . . . . . . . . . . . . . 1 Best Kill Streak 6 | . 6 5 5 . . 1 . 1 . . 1 . 5 . 1 . 5 . 1 . 3 5 Combat Bots Only 6 | . 6 5 3 . . . . 1 . . 1 . 5 . . . 5 . . . 3 3 Max Kills in Single Turn 5 | . 2 4 2 . . 1 . 1 . . 1 . 2 . 1 . 1 . 1 . 1 5 Gunslinging . | . . . . . . . . . . . . . . . . . . . . . . . Exploded 4 | . 2 4 2 . . . . . . . . . 2 . . . . . . . . 3 Melee 1 | . . . . . . . . 1 . . . . . . . . 1 . . . 1 . Uniques/NPCs Destroyed . | . . . . . . . . . . . . . . . . . . . . . . . Combat | -11 -10 -10 -10 -8 -8 -6 -6 -6 -6 -5 -5 -5 -5 -5 -4 -4 -4 -4 -4 -4 -3 -3 -------- Run | Yrd Mat Min Sub Rec Scr Fac Low Low Dat Pro Fac Upp Upp Zhi Pro Fac Ext Cet Arc Hub Res Tes Hostile Shots Fired 734 | . 55 19 64 . . 18 . 6 . 5 22 . 25 . . 18 84 12 13 19 154 220 Missed 249 | . 17 5 19 . . 8 . 2 . 5 9 . 12 . . 10 33 7 8 14 59 41 Hits 485 | . 38 14 45 . . 10 . 4 . . 13 . 13 . . 8 51 5 5 5 95 179 Projectile 485 | . 38 14 45 . . 10 . 4 . . 13 . 13 . . 8 51 5 5 5 95 179 AOE 1 | . . . . . . . . . . . . . . . . . . . . . . 1 Critical Strikes 12 | . . . . . . . . . . . 1 . . . . 1 . . . . 2 8 Damage Taken 7347 | . 356 210 333 . . 84 . 60 . . 265 . 541 . . 482 868 138 141 107 1803 1959 Core 2344 | . 85 39 37 . . 27 . 30 . . 63 . 201 . . 91 197 138 86 42 819 489 Absorbed by Shields 77 | . . . . . . . . . . . . . . . . . 77 . . . . . Redirected to Shielding 67 | . . . . . . . . . . . . . 67 . . . . . . . . . Regen/Repaired (Parts) 694 | . . . . . . . . . . . 34 . . . . 49 231 144 . . 67 169 Core Remaining (%) 69 | 100 . . . . 35 . . . . 93 . . . . 73 . . . . 45 . . Volleys Fired 163 | . 32 8 22 . . . . . . 8 13 14 12 . 4 15 27 . . . . 8 Largest 2 | . 2 2 2 . . . . . . 1 1 1 1 . 1 1 1 . . . . 2 Hottest 98 | . 70 60 50 . . . . . . . . . 30 . . . 51 . . . . 98 Shots Fired 219 | . 63 12 39 . . . . . . 8 13 14 12 . 4 15 27 . . . . 12 Gun 98 | . 61 8 29 . . . . . . . . . . . . . . . . . . . Cannon 4 | . . . . . . . . . . . . . . . . . 4 . . . . . Launcher 32 | . 2 4 10 . . . . . . . . . 5 . . . . . . . . 11 Special 85 | . . . . . . . . . . 8 13 14 7 . 4 15 23 . . . . 1 Kinetic 69 | . 30 6 29 . . . . . . . . . . . . . 4 . . . . . Thermal 1 | . . . . . . . . . . . . . . . . . . . . . . 1 Explosive 32 | . 2 4 10 . . . . . . . . . 5 . . . . . . . . 11 Electromagnetic 33 | . 31 2 . . . . . . . . . . . . . . . . . . . . Robot Hit Streak 10 | . 10 3 9 . . . . . . 1 3 . . . 1 . 2 . . . . 2 Robot Miss Streak 5 | . 3 1 2 . . . . . . 5 4 . . . 1 . 1 . . . . 1 Penetration Max . | . . . . . . . . . . . . . . . . . . . . . . . Secondary Targets 2 | . 2 . . . . . . . . . . . . . . . . . . . . . Max Gunslinging Chain 1 | . 1 . . . . . . . . . . . . . . . . . . . . . Shots Hit Robots 118 | . 38 7 28 . . 2 . 4 . 1 5 . . . 2 . 17 . 1 . 9 4 Core Hits 107 | . 18 9 18 . . 2 . 1 . . . . 8 . . . 8 . . . 6 37 Critical Kills . | . . . . . . . . . . . . . . . . . . . . . . . Critical Parts Destroyed . | . . . . . . . . . . . . . . . . . . . . . . . Critical Strikes 11 | . 1 . . . . . . 2 . . . . . . . . 3 . . . 5 . Corrupt 1 | . 1 . . . . . . . . . . . . . . . . . . . . . Sever 2 | . . . . . . . . 2 . . . . . . . . . . . . . . Impale 8 | . . . . . . . . . . . . . . . . . 3 . . . 5 . Melee Attacks 59 | . . . 4 . . 7 2 7 . . . . . . . 1 19 . 1 1 17 . Impact . | . . . . . . . . . . . . . . . . . . . . . . . Slashing 20 | . . . 4 . . 7 2 7 . . . . . . . . . . . . . . Piercing 39 | . . . . . . . . . . . . . . . . 1 19 . 1 1 17 . Sneak Attacks 3 | . . . . . . 2 . . . . . . . . . . . . 1 . . . Combat Hostiles . | . . . . . . . . . . . . . . . . . . . . . . . Follow-up Attacks . | . . . . . . . . . . . . . . . . . . . . . . . Damage Inflicted 5679 | . 677 501 495 . . 137 . 129 . . . . 344 . . . 613 . 112 . 389 2282 Guns 767 | . 516 85 166 . . . . . . . . . . . . . . . . . . . Cannons 19 | . . . . . . . . . . . . . . . . . 19 . . . . . Explosions 3519 | . 161 416 329 . . . . . . . . . 344 . . . . . . . . 2269 Melee 1361 | . . . . . . 137 . 129 . . . . . . . . 594 . 112 . 389 . Ramming 13 | . . . . . . . . . . . . . . . . . . . . . . 13 Kinetic 494 | . 248 61 166 . . . . . . . . . . . . . 19 . . . . . Thermal . | . . . . . . . . . . . . . . . . . . . . . . . Explosive 3519 | . 161 416 329 . . . . . . . . . 344 . . . . . . . . 2269 Electromagnetic 292 | . 268 24 . . . . . . . . . . . . . . . . . . . . Impact . | . . . . . . . . . . . . . . . . . . . . . . . Slashing 266 | . . . . . . 137 . 129 . . . . . . . . . . . . . . Piercing 1095 | . . . . . . . . . . . . . . . . . 594 . 112 . 389 . Highest Corruption 18 | . . . . . . . . . . . 1 1 8 8 8 3 3 3 3 3 . 18 Average Corruption 3 | . . . . . . . . . . . 1 1 4 8 8 3 3 3 3 3 . 8 Corruption Purged . | . . . . . . . . . . . . . . . . . . . . . . . Corruption Blocked . | . . . . . . . . . . . . . . . . . . . . . . . Effects 65 | . . . . . . . . . . . 1 12 5 4 10 3 13 10 . 2 . 5 Message Errors 18 | . . . . . . . . . . . . 1 1 1 4 1 3 4 . . . 3 Matter Fused 16 | . . . . . . . . . . . . 4 2 1 2 1 4 2 . . . . Heat Flow Errors 8 | . . . . . . . . . . . . 3 . 1 1 . 1 2 . . . . Energy Discharges 7 | . . . . . . . . . . . . 1 . . 1 1 3 . . . . 1 Parts Fused 2 | . . . . . . . . . . . . 1 . . . . . . . 1 . . Data Loss (minor) 12 | . . . . . . . . . . . 1 2 2 1 1 . 2 1 . 1 . 1 Data Loss (major) 2 | . . . . . . . . . . . . . . . 1 . . 1 . . . . Overload Shots . | . . . . . . . . . . . . . . . . . . . . . . . Overflow Damage 411 | . 26 74 . . . . . . . . . . . . . . . . 67 . 50 194 Projectiles . | . . . . . . . . . . . . . . . . . . . . . . . Explosions 294 | . 26 74 . . . . . . . . . . . . . . . . . . . 194 Melee 117 | . . . . . . . . . . . . . . . . . . . 67 . 50 . Knockbacks . | . . . . . . . . . . . . . . . . . . . . . . . Impact . | . . . . . . . . . . . . . . . . . . . . . . . Kinetic . | . . . . . . . . . . . . . . . . . . . . . . . Secondary . | . . . . . . . . . . . . . . . . . . . . . . . Self-Inflicted Damage 280 | . 15 62 7 . . . . . . . . . . . . . . . . . . 196 Shots 9 | . 1 2 1 . . . . . . . . . . . . . . . . . . 5 Rammed 10 | 1 . . . . . . . . . . . . . . . . . . . . . 9 Targets Rammed 14 | 1 . . . . . . . . . . . . . . . . . . . . . 13 Kicked 4 | . . . . . . . . . . . . . . . . . . . . . . 4 Crushed . | . . . . . . . . . . . . . . . . . . . . . . . Highest Temperature 253 | . 42 9 3 . . 3 . . . . . 223 2 161 241 . 253 212 . . . . Average Temperature 72 | . 16 9 3 . . 3 . . . . . 90 2 79 126 . 144 122 . . . . Received Heat Transfer 729 | . 96 24 156 . . 30 . . . . . . 12 . . . 131 27 27 9 208 9 Siege Activations . | . . . . . . . . . . . . . . . . . . . . . . . Martial Activations . | . . . . . . . . . . . . . . . . . . . . . . . Shielding Activations . | . . . . . . . . . . . . . . . . . . . . . . . Robots Disrupted . | . . . . . . . . . . . . . . . . . . . . . . . Combat Hostiles . | . . . . . . . . . . . . . . . . . . . . . . . Robots Corrupted . | . . . . . . . . . . . . . . . . . . . . . . . Combat Hostiles . | . . . . . . . . . . . . . . . . . . . . . . . Parts Fried 2 | . 2 . . . . . . . . . . . . . . . . . . . . . Impact Corruptions . | . . . . . . . . . . . . . . . . . . . . . . . Robots Melted . | . . . . . . . . . . . . . . . . . . . . . . . Combat Hostiles . | . . . . . . . . . . . . . . . . . . . . . . . Parts Melted 1 | . 1 . . . . . . . . . . . . . . . . . . . . . Heat Transferred . | . . . . . . . . . . . . . . . . . . . . . . . Parts Sabotaged . | . . . . . . . . . . . . . . . . . . . . . . . Parts Stolen . | . . . . . . . . . . . . . . . . . . . . . . . Parts Stripped . | . . . . . . . . . . . . . . . . . . . . . . . Power Chain Reactions . | . . . . . . . . . . . . . . . . . . . . . . . Alert | -11 -10 -10 -10 -8 -8 -6 -6 -6 -6 -5 -5 -5 -5 -5 -4 -4 -4 -4 -4 -4 -3 -3 ------- Run | Yrd Mat Min Sub Rec Scr Fac Low Low Dat Pro Fac Upp Upp Zhi Pro Fac Ext Cet Arc Hub Res Tes Maximum Alert Level 3 | . . . . . . . . . . . 3 . . . . . . . . . . 1 Low Security (%) 90 | 100 100 100 . 100 . 100 . . . . . . . . . 100 100 100 100 100 100 64 Level 1 4 | . . . . . . . . . . . . . . . . . . . . . . 35 Level 2 . | . . . . . . . . . . . . . . . . . . . . . . . Level 3 5 | . . . . . . . . . . . 100 . . . . . . . . . . . Level 4 . | . . . . . . . . . . . . . . . . . . . . . . . Level 5 . | . . . . . . . . . . . . . . . . . . . . . . . High Security . | . . . . . . . . . . . . . . . . . . . . . . . Max Security . | . . . . . . . . . . . . . . . . . . . . . . . Peak Influence 903 | . 196 160 . 106 . 168 . . . . 903 . . . . 20 182 92 5 95 170 287 Initial 900 | . . 65 . 106 . . . . . . 900 . . . . . . 92 . . 44 50 Average 100 | . 39 46 . 23 . 117 . . . . 872 . . . . 3 75 19 2 38 59 146 Influence Increases 3926 | . 277 319 315 . . 219 . 30 . . 993 . 125 . 5 69 613 . 5 125 360 471 Destroy 0b10 Robot/C 1240 | . 200 220 120 . . . . 20 . . 40 . 100 . . . 300 . . . 100 140 Destroy 0b10 Robot/NC 100 | . 20 . . . . 10 . . . . 5 . . . 5 . 15 . 5 . . 40 Destroy Leader 184 | . 44 40 . . . 4 . 10 . . 12 . 10 . . . 42 . . . 10 12 Allied During Kill 136 | . . 4 . . . . . . . . . . . . . . 132 . . . . . Successful Hack 110 | . . . . . . 37 . . . . 36 . . . . 9 . . . . 6 22 Select Force Hacks 50 | . . . . . . . . . . . . . . . . . . . . 50 . . Disable Machine 105 | . . 30 . . . 15 . . . . . . . . . 15 . . . 15 30 . Anti-Garrison Action 150 | . . . . . . 150 . . . . . . . . . . . . . . . . Destroy Structure 291 | . 13 25 . . . 3 . . . . . . . . . . 4 . . . 4 242 Advance Influence 900 | . . . . . . . . . . . 900 . . . . . . . . . . . Partial Spotted 135 | . . . . . . . . . . . . . . . . 45 60 . . 15 15 . Lose Combat Pursuer 525 | . . . 195 . . . . . . . . . 15 . . . 60 . . 45 195 15 Influence Decreases 3805 | . 109 487 92 223 . 70 149 10 20 . 260 718 140 . 5 69 447 166 5 40 355 440 Entered New Map 727 | . . 103 . 117 . . 56 . 20 . . 272 4 . . . . 74 . . 41 40 Time Decay 2342 | . 109 364 52 106 . 70 93 10 . . 150 446 106 . 5 60 262 92 5 40 118 254 Search Patrol Dispatched 100 | . . . . . . . . . . . 100 . . . . . . . . . . . Lost Part 456 | . . 20 40 . . . . . . . . . 30 . . . 60 . . . 196 110 Lost Ally 135 | . . . . . . . . . . . 10 . . . . . 125 . . . . . Purge Threat 45 | . . . . . . . . . . . . . . . . 9 . . . . . 36 Squads Dispatched 25 | . 3 . . . . 6 . . . . 3 . . . . 2 2 . . 6 . 3 Investigation 12 | . 2 . . . . 4 . . . . 1 . . . . 2 . . . 3 . . Extermination 2 | . . . . . . . . . . . 1 . . . . . . . . . . 1 Reinforcement 6 | . 1 . . . . . . . . . 1 . . . . . 2 . . 1 . 1 Assault 5 | . . . . . . 2 . . . . . . . . . . . . . 2 . 1 Garrison . | . . . . . . . . . . . . . . . . . . . . . . . Intercept . | . . . . . . . . . . . . . . . . . . . . . . . Searches Triggered 1 | . . . . . . . . . . . 1 . . . . . . . . . . . Data Miner Redirects 4 | . . . . . . . . . . . . . . . . 1 . . . 3 . . Construction Impeded 1 | . . . . . . . . . . . . . . . . . 1 . . . . . Haulers Reinforced 2 | . . . . . . . . . . . 1 . . . . . . . . . . 1 Active Scanning Responses . | . . . . . . . . . . . . . . . . . . . . . . . Cargo Convoy Interrupts . | . . . . . . . . . . . . . . . . . . . . . . . Stealth | -11 -10 -10 -10 -8 -8 -6 -6 -6 -6 -5 -5 -5 -5 -5 -4 -4 -4 -4 -4 -4 -3 -3 --------- Run | Yrd Mat Min Sub Rec Scr Fac Low Low Dat Pro Fac Upp Upp Zhi Pro Fac Ext Cet Arc Hub Res Tes Distress Signals 7 | . . . . . . . . . . . . . . . . . 2 . . 1 2 2 Communications Jammed . | . . . . . . . . . . . . . . . . . . . . . . . Distress Signals . | . . . . . . . . . . . . . . . . . . . . . . . Times Spotted 151 | . 13 11 7 . . 1 . 1 . 10 7 . 6 . . 4 23 5 4 14 25 20 Peak Tracking Total 11 | . 4 5 4 . . 1 . 1 . 5 4 . 5 . . 4 11 5 4 10 11 8 Tactical Retreats 15 | . . . 4 . . . . . . . . . 1 . . . 2 . . 2 5 1 Traps | -11 -10 -10 -10 -8 -8 -6 -6 -6 -6 -5 -5 -5 -5 -5 -4 -4 -4 -4 -4 -4 -3 -3 ------- Run | Yrd Mat Min Sub Rec Scr Fac Low Low Dat Pro Fac Upp Upp Zhi Pro Fac Ext Cet Arc Hub Res Tes Traps Triggered 6 | . 1 . . . . . . . . . . . . . . 2 3 . . . . . Indirectly . | . . . . . . . . . . . . . . . . . . . . . . . Trap Hack Attempts . | . . . . . . . . . . . . . . . . . . . . . . . Triggered . | . . . . . . . . . . . . . . . . . . . . . . . Disarmed . | . . . . . . . . . . . . . . . . . . . . . . . Reprogrammed . | . . . . . . . . . . . . . . . . . . . . . . . Reused . | . . . . . . . . . . . . . . . . . . . . . . . Traps Extracted . | . . . . . . . . . . . . . . . . . . . . . . . Installed . | . . . . . . . . . . . . . . . . . . . . . . . Triggered . | . . . . . . . . . . . . . . . . . . . . . . . Most Traps Carried 1 | . . . 1 1 1 . . . . . . . . . . . . . . . . . Machines | -11 -10 -10 -10 -8 -8 -6 -6 -6 -6 -5 -5 -5 -5 -5 -4 -4 -4 -4 -4 -4 -3 -3 ---------- Run | Yrd Mat Min Sub Rec Scr Fac Low Low Dat Pro Fac Upp Upp Zhi Pro Fac Ext Cet Arc Hub Res Tes Machines Disabled 13 | . . 2 3 . . 2 . 1 . . . . . . . 1 . . . 1 2 1 Max in Single Turn 2 | . . 1 2 . . 1 . 1 . . . . . . . 1 . . . 1 1 1 Garrison Access 3 | . . . . . . 1 . . . . . . . . . 1 . . . 1 . . Network Hub 1 | . . . . . . . . . . . . . . . . . . . . 1 . . Machines Repaired . | . . . . . . . . . . . . . . . . . . . . . . . Machines Dismantled . | . . . . . . . . . . . . . . . . . . . . . . . Machines Sabotaged 1 | . . . . . . . . . . . . . . . . . . . . 1 . . Overloaded Fab Kills . | . . . . . . . . . . . . . . . . . . . . . . . Hacking | -11 -10 -10 -10 -8 -8 -6 -6 -6 -6 -5 -5 -5 -5 -5 -4 -4 -4 -4 -4 -4 -3 -3 --------- Run | Yrd Mat Min Sub Rec Scr Fac Low Low Dat Pro Fac Upp Upp Zhi Pro Fac Ext Cet Arc Hub Res Tes Machines Accessed 43 | . 2 . 1 . 1 7 3 . 3 . 5 . 1 4 . 7 1 . . 3 2 3 Terminals 18 | . 2 . . . . 3 . . . . 3 . . . . 3 1 . . 3 1 2 Fabricators 2 | . . . . . . . . . . . 1 . . . . . . . . . . 1 Repair Stations 2 | . . . . . . . . . . . 1 . . . . . . . . . 1 . Recycling Units 5 | . . . . . . 3 . . . . . . . . . 2 . . . . . . Scanalyzers 1 | . . . . . . . . . . . . . . . . 1 . . . . . . Garrison Access 2 | . . . . . . 1 . . . . . . . . . 1 . . . . . . Total Hacks 125 | . 4 . 3 . 1 16 5 . 22 . 11 . 1 17 . 16 2 . . 3 9 15 Successful 81 | . 1 . 3 . 1 6 5 . 22 . 7 . 1 17 . 8 . . . 3 3 4 Failed 44 | . 3 . . . . 10 . . . . 4 . . . . 8 2 . . . 6 11 Catastrophic 8 | . . . . . . 2 . . . . 3 . . . . 1 . . . . . 2 Database Lockouts . | . . . . . . . . . . . . . . . . . . . . . . . Manual 35 | . 4 . . . . 6 . 1 . . 6 . . . . 7 . . . 3 3 5 Terminals 43 | . 4 . . . . 4 . . . . 7 . . . . 7 2 . . 3 3 13 Fabricators 4 | . . . . . . . . . . . 2 . . . . . . . . . . 2 Repair Stations 8 | . . . . . . . . . . . 2 . . . . . . . . . 6 . Recycling Units 9 | . . . . . . 6 . . . . . . . . . 3 . . . . . . Scanalyzers 4 | . . . . . . . . . . . . . . . . 4 . . . . . . Garrison Access 8 | . . . . . . 6 . . . . . . . . . 2 . . . . . . Terminal Hacks 59 | . . . 3 . 1 3 5 . 22 . 1 . 1 17 . 2 . . . . 1 3 Record 18 | . . . 3 . 1 . 3 . 6 . . . . 5 . . . . . . . . Part Schematic 14 | . . . . . . . . . 10 . . . . 4 . . . . . . . . Robot Schematic 4 | . . . . . . 1 . . 3 . . . . . . . . . . . . . Robot Analysis 4 | . . . . . . . . . . . . . . 4 . . . . . . . . Prototype ID Bank 7 | . . . . . . . . . 3 . . . . 4 . . . . . . . . Open Door 3 | . . . . . . . 2 . . . . . 1 . . . . . . . . . Level Access Points 1 | . . . . . . . . . . . 1 . . . . . . . . . . . Branch Access Points 3 | . . . . . . 1 . . . . . . . . . 1 . . . . 1 . Unreport Threat 2 | . . . . . . . . . . . . . . . . 1 . . . . . 1 Zone Layout 2 | . . . . . . 1 . . . . . . . . . . . . . . . 1 Protovariant Controls 1 | . . . . . . . . . . . . . . . . . . . . . . 1 Fabricator Hacks 2 | . . . . . . . . . . . 2 . . . . . . . . . . . Load Schematic 1 | . . . . . . . . . . . 1 . . . . . . . . . . . Build 1 | . . . . . . . . . . . 1 . . . . . . . . . . . Repair Station Hacks 4 | . . . . . . . . . . . 2 . . . . . . . . . 2 . Scan Component 1 | . . . . . . . . . . . 1 . . . . . . . . . . . Repair 1 | . . . . . . . . . . . 1 . . . . . . . . . . . Refit 2 | . . . . . . . . . . . . . . . . . . . . . 2 . Recycling Unit Hacks . | . . . . . . . . . . . . . . . . . . . . . . . Scanalyzer 2 | . . . . . . . . . . . . . . . . 2 . . . . . . Insert Component 1 | . . . . . . . . . . . . . . . . 1 . . . . . . Analyze 1 | . . . . . . . . . . . . . . . . 1 . . . . . . Garrison Access Hacks 1 | . . . . . . . . . . . . . . . . 1 . . . . . . Seal Access 1 | . . . . . . . . . . . . . . . . 1 . . . . . . Unauthorized Hacks 13 | . 1 . . . . 3 . . . . 2 . . . . 3 . . . 3 . 1 Terminals 8 | . 1 . . . . . . . . . 2 . . . . 1 . . . 3 . 1 Assimilate 4 | . . . . . . . . . . . 2 . . . . 1 . . . . . 1 Operators 1 | . 1 . . . . . . . . . . . . . . . . . . . . . Sabotage 3 | . . . . . . . . . . . . . . . . . . . . 3 . . Fabricators . | . . . . . . . . . . . . . . . . . . . . . . . Repair Stations . | . . . . . . . . . . . . . . . . . . . . . . . Recycling Units 5 | . . . . . . 3 . . . . . . . . . 2 . . . . . . Fedlink 5 | . . . . . . 3 . . . . . . . . . 2 . . . . . . Scanalyzers . | . . . . . . . . . . . . . . . . . . . . . . . Garrison Access . | . . . . . . . . . . . . . . . . . . . . . . . Data Cores Recovered . | . . . . . . . . . . . . . . . . . . . . . . . Used . | . . . . . . . . . . . . . . . . . . . . . . . Hacking Detections 19 | . 2 . . . . 3 . . . . 5 . . . . 4 1 . . . 1 3 Full Trace Events 2 | . . . . . . 1 . . . . 1 . . . . . . . . . . . Feedback Events . | . . . . . . . . . . . . . . . . . . . . . . . Feedback Blocked . | . . . . . . . . . . . . . . . . . . . . . . . Robot Schematics Acquired 4 | . . . . . . 1 . . 3 . . . . . . . . . . . . . Robots Built . | . . . . . . . . . . . . . . . . . . . . . . . Authchips . | . . . . . . . . . . . . . . . . . . . . . . . Time . | . . . . . . . . . . . . . . . . . . . . . . . Total Robot Build Rating . | . . . . . . . . . . . . . . . . . . . . . . . Part Schematics Acquired 15 | . . . . . . . . . 10 . . . . 4 . 1 . . . . . . Parts Built 1 | . . . . . . . . . . . 1 . . . . . . . . . . . Authchips . | . . . . . . . . . . . . . . . . . . . . . . . Time 152 | . . . . . . . . . . . 152 . . . . . . . . . . . Total Part Build Rating 5 | . . . . . . . . . . . 5 . . . . . . . . . . . Part Studies Acquired . | . . . . . . . . . . . . . . . . . . . . . . . Parts Repaired 1 | . . . . . . . . . . . 1 . . . . . . . . . . . Time 22 | . . . . . . . . . . . 22 . . . . . . . . . . . Parts Recycled . | . . . . . . . . . . . . . . . . . . . . . . . Recycled Matter . | . . . . . . . . . . . . . . . . . . . . . . . Retrieved Matter . | . . . . . . . . . . . . . . . . . . . . . . . Retrieved Components . | . . . . . . . . . . . . . . . . . . . . . . . Parts Scanalyzed 1 | . . . . . . . . . . . . . . . . 1 . . . . . . Part Schematics Acquired 1 | . . . . . . . . . . . . . . . . 1 . . . . . . Parts Damaged . | . . . . . . . . . . . . . . . . . . . . . . . Bothacking | -11 -10 -10 -10 -8 -8 -6 -6 -6 -6 -5 -5 -5 -5 -5 -4 -4 -4 -4 -4 -4 -3 -3 ------------ Run | Yrd Mat Min Sub Rec Scr Fac Low Low Dat Pro Fac Upp Upp Zhi Pro Fac Ext Cet Arc Hub Res Tes Used RIF Installer . | . . . . . . . . . . . . . . . . . . . . . . . Robots Hacked . | . . . . . . . . . . . . . . . . . . . . . . . Non-combat . | . . . . . . . . . . . . . . . . . . . . . . . Combat . | . . . . . . . . . . . . . . . . . . . . . . . Robot Hacks Applied . | . . . . . . . . . . . . . . . . . . . . . . . Relay Couplers Released 5 | . . . . . . 3 . . . . . . . . . . . . . 2 . . Machine Destruction 5 | . . . . . . 3 . . . . . . . . . . . . . 2 . . Fabnet Peak Effective % . | . . . . . . . . . . . . . . . . . . . . . . . Robots Rewired . | . . . . . . . . . . . . . . . . . . . . . . . Allies Hacked . | . . . . . . . . . . . . . . . . . . . . . . . Hacks Repelled . | . . . . . . . . . . . . . . . . . . . . . . . Allies | -11 -10 -10 -10 -8 -8 -6 -6 -6 -6 -5 -5 -5 -5 -5 -4 -4 -4 -4 -4 -4 -3 -3 -------- Run | Yrd Mat Min Sub Rec Scr Fac Low Low Dat Pro Fac Upp Upp Zhi Pro Fac Ext Cet Arc Hub Res Tes Total Allies 17 | . . 1 . . . . 3 . . . 1 . . . . . 11 . . . . 1 Largest Group 9 | . . 1 . . . . 3 . . . 1 . . . . . 9 . . . . 1 Highest-Rated Group 415 | . . 31 . . . . 60 . . . 10 . . . . . 415 . . . . 10 Highest-Rated Ally 159 | . . 31 . . . . 20 . . . 10 . . . . . 159 . . . . 10 Total Orders . | . . . . . . . . . . . . . . . . . . . . . . . Ally Attacks 78 | . . 8 . . . . . . . . . . . . . . 70 . . . . . Total Damage 1724 | . . 148 . . . . . . . . . . . . . . 1576 . . . . . Kills 11 | . . 2 . . . . . . . . . . . . . . 9 . . . . . Allies Corrupted . | . . . . . . . . . . . . . . . . . . . . . . . Allies Melted . | . . . . . . . . . . . . . . . . . . . . . . . Intel | -11 -10 -10 -10 -8 -8 -6 -6 -6 -6 -5 -5 -5 -5 -5 -4 -4 -4 -4 -4 -4 -3 -3 ------- Run | Yrd Mat Min Sub Rec Scr Fac Low Low Dat Pro Fac Upp Upp Zhi Pro Fac Ext Cet Arc Hub Res Tes Active Infowar (turns) 6384 | . . . . . . 155 403 253 33 626 307 1107 415 134 274 267 742 477 32 145 334 680 Optics 2675 | . . . . . . . . . . . . . . . . 265 742 477 32 145 334 680 Sensors 4914 | . . . . . . 155 403 253 33 626 307 1107 415 134 274 267 727 . . . 213 . Terrain 4403 | . . . . . . . 286 253 33 626 307 1107 415 116 274 267 184 . . 112 182 241 Decoding 2946 | . . . . . . . . . . . . . . . 269 267 742 477 32 145 334 680 Robot Analysis Total 4 | . . . . . . . . . . . . . . 4 . . . . . . . . Derelict Logs Recovered 8 | . . 1 . . . . 2 2 . . . 2 . . 1 . . . . . . . Drone Launches . | . . . . . . . . . . . . . . . . . . . . . . . Drone Recoveries . | . . . . . . . . . . . . . . . . . . . . . . . Decoded 0b10 Intel 110 | . . . . . . . . . . . . . . . . 21 23 . . 10 22 34 Items 110 | . . . . . . . . . . . . . . . . 21 23 . . 10 22 34 Exploration | -11 -10 -10 -10 -8 -8 -6 -6 -6 -6 -5 -5 -5 -5 -5 -4 -4 -4 -4 -4 -4 -3 -3 ------------- Run | Yrd Mat Min Sub Rec Scr Fac Low Low Dat Pro Fac Upp Upp Zhi Pro Fac Ext Cet Arc Hub Res Tes Turns Passed 12983 | 82 745 1250 463 529 3528 157 403 253 33 626 307 1107 415 134 274 267 742 477 32 145 334 680 Spaces Moved 9304 | 46 266 348 131 166 1947 314 510 622 100 733 491 637 541 167 425 470 494 57 44 187 272 336 Core 5 | 2 . . . . . . . . . . . . . . . . . . . . . 3 Treads 2622 | 44 266 348 131 166 1667 . . . . . . . . . . . . . . . . . Legs 242 | . . . . . . . . . . . . . . . . . . . . . 37 205 Wheels . | . . . . . . . . . . . . . . . . . . . . . . . Hover . | . . . . . . . . . . . . . . . . . . . . . . . Flight 6435 | . . . . . 280 314 510 622 100 733 491 637 541 167 425 470 494 57 44 187 235 128 Fastest Speed 26 | 50 160 240 240 320 34 29 29 29 29 26 26 26 26 27 27 27 27 34 34 34 27 28 Average Speed 86 | 155 236 240 247 320 177 32 29 29 29 26 26 26 31 37 27 27 34 34 49 37 73 87 Slowest Speed 320 | 160 240 320 320 320 320 34 29 29 29 29 26 26 40 95 27 27 103 34 168 101 170 250 Overloaded Moves . | . . . . . . . . . . . . . . . . . . . . . . . Propulsion Burnouts . | . . . . . . . . . . . . . . . . . . . . . . . Robots Hopped 27 | . . . . . . . . . . . . . . . . 8 4 . 1 8 6 . Potential Cave-ins 14 | . . . . . . . . . . . . . 5 . . 1 8 . . . . . Cave-ins Triggered 1 | . . . . . . . . . . . . . 1 . . . . . . . . . Teleports 1 | . . . . . . . . . . . . . . . . . . 1 . . . . Exploration Rate (%) 47 | 4 46 72 6 35 84 8 67 73 75 79 12 70 74 60 63 12 63 49 71 32 9 34 Regions Visited 22 Branch Regions 17 Pre-discovered Areas 7 | . . . . . . 1 1 . 1 . . 1 . 3 . . . . . . . . Known Exits Taken 17 | . . . 1 . . 1 1 1 1 1 1 1 1 1 1 1 1 1 1 1 1 . Unknown Exits Taken 5 | 1 1 1 . 1 1 . . . . . . . . . . . . . . . . . Scrap Searched 20 | . . 1 . . 11 . . . . 4 . 1 . . 3 . . . . . . . Spaces Dug 7 | . . . . . . 3 2 . . . . . . . . . . . . . 2 . Terrain Destroyed 247 | . 12 30 15 . . 3 2 . . . . . 24 . . . 1 . . . 2 158 Melee 7 | . . . . . . 3 2 . . . . . . . . . . . . . 2 . Projectile . | . . . . . . . . . . . . . . . . . . . . . . . AOE 239 | . 12 30 15 . . . . . . . . . 24 . . . . . . . . 158 Terrain Rammed . | . . . . . . . . . . . . . . . . . . . . . . . Walls Destroyed . | . . . . . . . . . . . . . . . . . . . . . . . Machines Disabled . | . . . . . . . . . . . . . . . . . . . . . . . Actions | -11 -10 -10 -10 -8 -8 -6 -6 -6 -6 -5 -5 -5 -5 -5 -4 -4 -4 -4 -4 -4 -3 -3 --------- Run | Yrd Mat Min Sub Rec Scr Fac Low Low Dat Pro Fac Upp Upp Zhi Pro Fac Ext Cet Arc Hub Res Tes Total 13762 | 53 319 748 227 166 2013 354 760 684 104 1151 644 1550 765 236 575 569 973 515 50 250 362 694 Wait 3705 | . 15 387 64 1 26 20 245 50 . 393 126 898 208 51 146 78 396 453 2 65 46 35 Move 9232 | 45 265 347 130 165 1946 313 509 621 99 732 490 636 539 166 424 456 486 56 41 171 259 336 Hop 22 | . . . . . . . . . . . . . . . . 5 3 . 1 7 6 . Pick Up 56 | 1 2 3 1 . 18 2 . 1 2 6 3 1 1 1 . 2 3 . . 1 6 2 Fast Attach 70 | 6 1 . . . 5 7 2 . . 2 3 . . 9 1 5 7 . 2 . 9 11 Attach 43 | . . 2 2 . 5 2 . 1 1 . 2 . 1 2 . 1 4 3 2 2 7 6 Detach 25 | . 1 . . . . . . . . . . . . 2 . 1 6 3 1 1 6 4 Swap 17 | . 3 1 4 . . . 1 1 . 1 2 . . 1 . . 2 . . 1 . . Drop 62 | . . . . . 13 3 1 3 2 8 5 1 3 4 . 5 5 . . 1 6 2 Fire 163 | . 32 8 22 . . . . . . 8 13 14 12 . 4 15 27 . . . . 8 Melee 59 | . . . 4 . . 7 2 7 . . . . . . . 1 19 . 1 1 17 . Ram 9 | . . . . . . . . . . . . . . . . . . . . . . 9 Kick 4 | . . . . . . . . . . . . . . . . . . . . . . 4 Crush 1 | 1 . . . . . . . . . . . . . . . . . . . . . . Escape Stasis 293 | . . . . . . . . . . . . . 1 . . . 15 . . . . 277 Rewire . | . . . . . . . . . . . . . . . . . . . . . . . Trap . | . . . . . . . . . . . . . . . . . . . . . . . Miscellaneous 1 | . . . . . . . . . . 1 . . . . . . . . . . . . Route ------- -11/Scrapyard -10/Materials (discovered 2 exits: [*Mat] / [*Min]) -10/Mines (discovered 2 exits: [*Mat] / *Sub) -10/Subcaves (discovered 2 exits: [*Mat] / *Rec) -8/Recycling -8/Scraptown (discovered 2 exits: *Fac x2) -6/Factory (discovered 2 exits: *Low x2) -6/Lower Caves -6/Lower Caves -6/Data Miner -5/Proximity Caves -5/Factory (discovered 5 exits: Fac x4 / *Upp) -5/Upper Caves -5/Upper Caves (discovered 2 exits: Fac / *Zhi) -5/Zhirov -4/Proximity Caves -4/Factory (discovered 6 exits: *Res x2 / Upp x2 / *Ext x2) -4/Extension (discovered 2 exits: *Res / *Cet) -4/Cetus -4/Archives -4/Hub_04(d) (discovered 2 exits: *Res x2) -3/Research (discovered 3 exits: Arm / *Tes x2) -3/Testing History --------- Turn | Location | Event 7 | -11/Scrapyard | Discovered new exit (range 15) 83 | -11/Scrapyard | Entered Materials 84 | -10/Materials | Met a group of wandering Federalists 214 | -10/Materials | Discovered new exit (range 16) 302 | -10/Materials | Discovered new exit (range 16) 315 | -10/Materials | Build established: Mutant 828 | -10/Materials | Entered Mines 828 | -10/Mines | Discovered new exit (range 7) 831 | -10/Mines | Received a Mining Laser from a helpful Derelict 1182 | -10/Mines | Learned Materials terminal intel 2032 | -10/Mines | Discovered new exit (range 5) 2078 | -10/Mines | Entered Subcaves 2079 | -10/Subcaves | Approached by a straggling Scientist 2080 | -10/Subcaves | Shifting Twisted Machinery released Shrapnel Trap 2170 | -10/Subcaves | Discovered new exit (range 6) 2209 | -10/Subcaves | Visited Clippyterm 2217 | -10/Subcaves | Identified exit to Recycling 2449 | -10/Subcaves | Core integrity fell below 50% 2520 | -10/Subcaves | Lost 3 parts (1p1n1w) 2541 | -10/Subcaves | Entered Recycling 2945 | -8/Recycling | Scanned before Scraplab entrance 2989 | -8/Recycling | Entered Scraplab 3061 | -8/Recycling | Discovered new exit (range 3) 3070 | -8/Recycling | Entered Scraptown 3607 | -8/Scraptown | Received an X-ray algorithm 3785 | -8/Scraptown | Discovered new exit (range 11) 4037 | -8/Scraptown | Visited Fellowship of the Rings 4131 | -8/Scraptown | Visited SPCMW 4157 | -8/Scraptown | Visited The Evicted 4345 | -8/Scraptown | Visited Bundlers 4531 | -8/Scraptown | Visited TADAMA 4601 | -8/Scraptown | Visited UFD Registry 4601 | -8/Scraptown | Registered with UFD as "Ionroller" 4666 | -8/Scraptown | Visited Scrapoid Research Area 4711 | -8/Scraptown | Visited Curators Association 4841 | -8/Scraptown | Visited A0-MCA Data Center 4856 | -8/Scraptown | Given a D+ rating by A0-MCA 4871 | -8/Scraptown | Found A0-MCA's Component Scanner 4918 | -8/Scraptown | Visited DA-N13 Charitable Foundation 4928 | -8/Scraptown | Found DCF Scrap (33 items) 4997 | -8/Scraptown | Visited Derelict Rescue Squad 5013 | -8/Scraptown | Found DRS Beacon 5037 | -8/Scraptown | Visited Research Penetration Think Tank 5079 | -8/Scraptown | Visited Scrapoid Pod Storage 5107 | -8/Scraptown | Visited Science Testing Area 5133 | -8/Scraptown | Visited Infowarlord's Domain 5670 | -8/Scraptown | Discovered new exit (range 5) 6297 | -8/Scraptown | Found Exp. Terrain Scanner 6553 | -8/Scraptown | Met Optimus 6553 | -8/Scraptown | Accepted into 0bPrime 6598 | -8/Scraptown | Entered Factory 6598 | -6/Factory | Evolved 8 slots: Power x1, Propulsion x3, Utility x4 6644 | -6/Factory | Loaded intel: 8 recycling unit locations 6658 | -6/Factory | Identified exit to Lower Caves 6692 | -6/Factory | Learned location of Protoforge (-2) 6755 | -6/Factory | Entered Lower Caves 7031 | -6/Lower Caves | Learned Factory stockpile data 7034 | -6/Lower Caves | Entered an active Warlord outpost 7035 | -6/Lower Caves | Learned Factory terminal intel 7039 | -6/Lower Caves | A Commander dispatched an escort 7050 | -6/Lower Caves | Discovered new exit (range 14) 7065 | -6/Lower Caves | Identified exit to Lower Caves 7158 | -6/Lower Caves | Entered another Lower Caves area 7158 | -6/Lower Caves | Accompanied by 3 allies 7159 | -6/Lower Caves | Commander's escort returned to base 7159 | -6/Lower Caves | Commander's escort returned to base 7159 | -6/Lower Caves | Commander's escort returned to base 7178 | -6/Lower Caves | Build established: Hacker-Scout 7183 | -6/Lower Caves | Learned Factory trap positions 7267 | -6/Lower Caves | Discovered new exit (range 16) 7272 | -6/Lower Caves | Learned Factory stockpile data 7367 | -6/Lower Caves | Acquired the password to a Derelict Tinkerer's latest research 7370 | -6/Lower Caves | Found Prototype Special Weapon 7409 | -6/Lower Caves | Identified exit to Data Miner 7411 | -6/Lower Caves | Entered Data Miner 7411 | -6/Data Miner | Discovered new exit (range 6) 7417 | -6/Data Miner | Met Data Miner 7425 | -6/Data Miner | Learned location of Section 7 (-2) 7425 | -6/Data Miner | Acquired the access code to Warlord's prototype stash 7432 | -6/Data Miner | Received God Mode back door access code from Data Miner 7435 | -6/Data Miner | Identified Molecular Deconstructor 7444 | -6/Data Miner | Identified exit to Proximity Caves 7444 | -6/Data Miner | Entered Proximity Caves 7446 | -5/Proximity Caves | Spotter reported a threat 7447 | -5/Proximity Caves | Spotter reported a threat 7546 | -5/Proximity Caves | Spotter reported a threat 7557 | -5/Proximity Caves | Activated DRS Beacon 7683 | -5/Proximity Caves | Spotter reported a threat 7794 | -5/Proximity Caves | Spotter reported a threat 7799 | -5/Proximity Caves | Spotter reported a threat 7946 | -5/Proximity Caves | Discovered new exit (range 2) 7946 | -5/Proximity Caves | Identified exit to Factory 8070 | -5/Proximity Caves | Entered Factory 8070 | -5/Factory | Evolved 2 slots: Utility x2 8071 | -5/Factory | Loaded intel: 99 trap records 8073 | -5/Factory | Loaded intel: 26 terminal locations 8139 | -5/Factory | Repaired Mic. Nuclear Core 8168 | -5/Factory | Identified exit to Factory 8185 | -5/Factory | Discovered new exit (range 15) 8324 | -5/Factory | Fabricated Lgt. Regenerative Plating? 8370 | -5/Factory | Search patrols dispatched 8377 | -5/Factory | Identified exit to Upper Caves 8377 | -5/Factory | Entered Upper Caves 8476 | -5/Upper Caves | Learned location of 1 exit from Factory 8486 | -5/Upper Caves | Encountered a Warlord checkpoint 9092 | -5/Upper Caves | Found Alien Artifact 9328 | -5/Upper Caves | Learned location of Warlord (-4) 9426 | -5/Upper Caves | Spotted B-75 Beast 9457 | -5/Upper Caves | Discovered new exit (range 10) 9464 | -5/Upper Caves | Identified exit to Upper Caves 9484 | -5/Upper Caves | Entered another Upper Caves area 9487 | -5/Upper Caves | Spotted B-75 Beast 9488 | -5/Upper Caves | Discovered exit to Factory (range 26) 9617 | -5/Upper Caves | Encountered a Warlord checkpoint 9668 | -5/Upper Caves | Crushed by falling debris 9707 | -5/Upper Caves | Lost 4 parts (1p3n) 9863 | -5/Upper Caves | Discovered new exit (range 13) 9872 | -5/Upper Caves | Identified exit to Zhirov 9899 | -5/Upper Caves | Entered Zhirov 9899 | -5/Zhirov | Discovered new exit (range 3) 9907 | -5/Zhirov | Met Zhirov 9918 | -5/Zhirov | Learned location of Quarantine (-2) 9918 | -5/Zhirov | Learned location of Testing (-3) 9918 | -5/Zhirov | Learned location of Command (-1) 9921 | -5/Zhirov | Zhirov requested help retrieving the SGEMP Prototype 9927 | -5/Zhirov | Found Alien Artifact 9927 | -5/Zhirov | Identified Integrated Dissipator 9927 | -5/Zhirov | Installed Integrated Dissipator, increased core heat dissipation (+20) 10016 | -5/Zhirov | Found Alien Artifact 10033 | -5/Zhirov | Identified exit to Proximity Caves 10033 | -5/Zhirov | Entered Proximity Caves 10058 | -4/Proximity Caves | Learned Research trap positions 10161 | -4/Proximity Caves | Discovered exit to Factory (range 30) 10307 | -4/Proximity Caves | Entered Factory 10307 | -4/Factory | Evolved 2 slots: Utility x2 10308 | -4/Factory | Identified exit to Research 10364 | -4/Factory | Identified exit to Upper Caves 10364 | -4/Factory | Identified exit to Extension 10420 | -4/Factory | Loaded intel: 8 recycling unit locations 10462 | -4/Factory | Discovered exit to Research (range 11) 10503 | -4/Factory | Incoming investigation squad redirected 10574 | -4/Factory | Entered Extension 10585 | -4/Extension | Rescued a captive Derelict 10586 | -4/Extension | Rescued a captive Derelict 10658 | -4/Extension | Rescued a captive Derelict 10659 | -4/Extension | Rescued a captive Derelict 10679 | -4/Extension | Rescued a captive Derelict 10690 | -4/Extension | Rescued a captive Derelict 10703 | -4/Extension | Rescued a captive Derelict 10703 | -4/Extension | Rescued a captive Derelict 10712 | -4/Extension | Rescued a captive Derelict 10713 | -4/Extension | Rescued a captive Derelict 11138 | -4/Extension | Lost 6 allies 11187 | -4/Extension | Rescued A7 11267 | -4/Extension | Extracted ID and sensor layout for unrecognized location from A7's data core 11278 | -4/Extension | Rescued a captive Derelict 11279 | -4/Extension | Rescued a captive Derelict 11311 | -4/Extension | Discovered exit to Research (range 10) 11311 | -4/Extension | Discovered new exit (range 6) 11313 | -4/Extension | Identified exit to Cetus 11316 | -4/Extension | Entered Cetus 11335 | -4/Cetus | Lost 6 parts (5n1u) 11605 | -4/Cetus | Build established: Hacker-Mutant 11773 | -4/Cetus | Identified Transdimensional Reconstructor 11773 | -4/Cetus | Warped through subspace 11773 | -4/Cetus | Spotted Cetus Guard 11773 | -4/Cetus | Spotted Cetus Guard 11773 | -4/Cetus | Spotted Cetus Guard 11773 | -4/Cetus | Spotted Cetus Guard 11786 | -4/Cetus | Discovered new exit (range 22) 11793 | -4/Cetus | Identified exit to Archives 11793 | -4/Cetus | Entered Archives 11816 | -4/Archives | Discovered new exit (range 21) 11817 | -4/Archives | Core integrity fell below 50% 11824 | -4/Archives | Identified exit to Hub_04(d) 11825 | -4/Archives | Entered Hub_04(d) 11886 | -4/Hub_04(d) | Network Hub disabled 11904 | -4/Hub_04(d) | Incoming assault squad redirected 11913 | -4/Hub_04(d) | Incoming investigation squad redirected 11915 | -4/Hub_04(d) | Spotted Lightning 11938 | -4/Hub_04(d) | Incoming investigation squad redirected 11958 | -4/Hub_04(d) | Discovered exit to Research (range 21) 11963 | -4/Hub_04(d) | Discovered exit to Research (range 20) 11970 | -4/Hub_04(d) | Entered Research 11970 | -3/Research | Evolved 2 slots: Utility x2 11971 | -3/Research | Loaded intel: 86 trap records 12135 | -3/Research | Identified exit to Armory 12135 | -3/Research | Identified exit to Testing 12291 | -3/Research | Core integrity fell below 50% 12304 | -3/Research | Entered Testing 12327 | -3/Testing | Lost 18 parts (2p6n9u1w) 12472 | -3/Testing | Protovariant out of control (PP-E0PQLLS46U) 12472 | -3/Testing | Unleashed a protovariant (PP-E0PQLLS46U) 12537 | -3/Testing | Spotted Investigator 12538 | -3/Testing | Scanned by Researcher 12628 | -3/Testing | Build established: Mutant 12916 | -3/Testing | Destroyed Investigator 12917 | -3/Testing | Core integrity fell below 20% 12917 | -3/Testing | System corruption reached 10% 12927 | -3/Testing | Found Prototype Launcher 12927 | -3/Testing | Identified Containment Facilitator 12956 | -3/Testing | Lost 6 parts (2p2n2w) 12984 | -3/Testing | Destroyed by P-80 Master with Gamma Rifle Last Messages --------------- 12939_ The unstable cave ceiling collapses. 12944_ Machine disabled. 12949_ Dropped Imp. Thunder Leg. 12950_ Dropped Micro-nuke Launcher. 12955_ Slammed into P-80 Master. 12958_ Welding Torch destroyed. 12960_ System corrupted: Energy discharge (-6). 12961_ Slammed into P-80 Master. 12961_ U-05 Engineer lays Concrete. 12963_ Slammed into P-80 Master. 12963_ Destabilizing: Core damaged (-52). 12965_ U-05 Engineer lays Concrete. 12966_ Slammed into P-80 Master. 12966_ U-05 Engineer lays Concrete. 12968_ Slammed into P-80 Master. 12979_ Lgt. Regenerative Plating destroyed. 12980_ System corrupted: Component data lost. 12981_ K-01 Serf collects debris. 12983_ W-44 Eye sends out distress signal. 12984_ U-05 Engineer builds a Wall. Map ----- +----------------------------------------------------+ | ???????????########### ##??# """S""" # | | ???????????# # #### | | ???????????# ################# # | | ?????????#?# # % | | ???????????# ^ # | | ???????????# # | | ???????????# ^ + | | ???????????# ##########+ | | ???????????# ##??# # # | | ??#?############### # #### """ ## ## | | ????# """"" # ! w # "T" ## ! [ | | ????# """"" # *!! # ## |[= | | ????# """"" # | + ## *= | | ????# + !%* # ## = | | ????# # ## p## ###### """" ######## | | ???## # # ## """" #???# | | #???# # % =k ## """" #?#?# " | | ????# ##### """ ## """" ##??# " | | ????###########???# " ## #???# " | | ???????????##?????## ##########??## | | ??????????????????## """ #???#????#???# | | ???????????????????# "]" """ #????????????# ] | | ???????????????????# """ """ #?????#??????# | | ???????????????????# = #??????#?????#### | | ???????????????????# ] #???????????????? | | ??????????????#????# p @ #????#?#????#?#?? | | ???????????????????# #???????????????? | | ???????????????????##############???????????#???? | | ??????????????????????????????????????#?#??#??#?? | | ????????#????????????????#??????????#???????????? | | ????????????????????????????#????????#??????????? | | ?????????????#??????????#??????#?????##???#?????? | | ????#??#????????????????????????????#??#????????# | | ???????????????????????#???????????????????#????? | | ?????????????????????????????#??????????????#???? | | | | | | | | | | | | | | | | | | | | | | | | | | | | | | | +----------------------------------------------------+ Best States ------------- Heat Dissipation 66 Energy Generation 52 Energy Capacity 495 Matter Stores 300 Matter Capacity 300 Sight Range 22 Robot Scan Range 16 Terrain Scan Range 30 Terrain Scan Density 210 Power Amplification 40 Additional Mass Support 9 Armor Coverage 150 Utility Shielding 66 Weapon Shielding 90 Evasion (%) 70 Melee Accuracy 5 Target Analysis 6 Core Analysis 6 Recoil Reduction 2 Kinecelleration 40 Offensive Hacking 34 Defensive Hacking 10 Item Schematics ----------------- Combat Drone Bay | -6/Data Miner | Free Lgt. Regenerative Plating | -6/Data Miner | Free Enh. Armored Leg | -6/Data Miner | Free Imp. Energy Well | -6/Data Miner | Free Hvy. Proton Missile Launcher | -6/Data Miner | Free Imp. Heavy Treads | -6/Data Miner | Free Imp. Armor Integrity Analyzer | -6/Data Miner | Free Hvy. Disruptor Cannon | -6/Data Miner | Free Field Propulsion Array | -6/Data Miner | Free Imp. Cloaking Device | -6/Data Miner | Free Exp. Optical Array | -5/Zhirov | Free Imp. Arc Thrower | -5/Zhirov | Free Exp. Heat Sink | -5/Zhirov | Free Assault Drone Bay | -5/Zhirov | Free Imp. Utility Shielding | -4/Factory | Scanalyzed Robot Schematics ------------------ R-10 Processor | -6/Factory | Hacked G-67 Veteran | -6/Data Miner | Free B-60 Warrior | -6/Data Miner | Free S-27 Virus | -6/Data Miner | Free Fabricated ------------ Lgt. Regenerative Plating | x1 | -5/Factory Repaired ---------- Mic. Nuclear Core | 32% | -5/Factory Studied --------- None Alien Tech Used ----------------- Integrated Dissipator Transdimensional Reconstructor Achievements -------------- None Challenges ------------ None Game ------ Seed CompositeAssemblySuit Manual? 0 Play Time 01:38:07 Cumulative 514.2 hours Start 2025.11.06 @ 23:26:53 End 2025.11.07 @ 13:16:03 Sessions 5 Manual Loads 0 Difficulty Rogue Special Mode None Game No. 851 Rogue 696 Adventurer 148 Explorer 7 Win Type - Total 24 Types 19/1/3/1/0/0/0/0/0/0 Lore% 76 Gallery% 79 Achievement% 61 Wizard Run 0 Options --------- Layout 1 ASCII 0 Keyboard 0 Movement Numpad Keybinds 0 Fullscreen 2 Font 24/Smallcaps Map View 50x35 Zoom Use 0% Tactical HUD 1 Map Filters NONE Filters NONE Steam 1 RUN: b883cd6a-dd2a-4859-94b8-6dc785bd8766